fUSD/lending_fUSD_20260512
["ID","MTS","AMOUNT","RATE_DAILY","PERIOD"]
[422068326,1778547040000,-5006.6,0.000363,14]
[422068327,1778547040000,-527.65577119,0.00036425,2]
[422068330,1778547040000,-417.19061879,0.00036594,2]
[422068331,1778547040000,-1111.61300691,0.00036742,2]
[422068325,1778547040000,-151.0,0.00036153,30]
[422068332,1778547040000,-160.0,0.000368,120]
[422068343,1778547040000,-300.0,0.0003699,2]
[422068334,1778547040000,-250.0,0.00036966,7]
[422068345,1778547040000,-1093.93728263,0.0003699,2]
[422068342,1778547040000,-300.0,0.0003699,2]
[422068341,1778547040000,-1117.14215031,0.0003699,2]
[422068339,1778547040000,-300.0,0.0003699,2]
[422068344,1778547040000,-300.0,0.0003699,2]
[422068337,1778547040000,-309.60276076,0.0003699,2]
[422068340,1778547040000,-300.0,0.0003699,2]
[422068335,1778547040000,-150.0,0.00036971,2]
[422068333,1778547040000,-152.0,0.00036959,30]
[422068346,1778547040000,-300.0,0.0003699,2]
[422068338,1778547040000,-300.0,0.0003699,2]
[422068336,1778547040000,-158.58,0.00036986,60]
[422068408,1778547041000,-300.0,0.0003699,2]
[422068409,1778547041000,-451.58065097,0.0003699,2]
[422068417,1778547041000,-300.0,0.0003699,2]
[422068407,1778547041000,-300.0,0.0003699,2]
[422068411,1778547041000,-300.0,0.0003699,2]
[422068413,1778547041000,-300.0,0.0003699,2]
[422068414,1778547041000,-300.0,0.0003699,2]
[422068415,1778547041000,-483.72999423,0.0003699,2]
[422068412,1778547041000,-300.0,0.0003699,2]
[422068416,1778547041000,-309.60276076,0.0003699,2]
[422068410,1778547041000,-300.0,0.0003699,2]
[422068432,1778547041000,-300.0,0.0003699,2]
[422068419,1778547041000,-300.0,0.0003699,2]
[422068421,1778547041000,-300.0,0.0003699,2]
[422068420,1778547041000,-1117.14215031,0.0003699,2]
[422068422,1778547041000,-300.0,0.0003699,2]
[422068423,1778547041000,-300.0,0.0003699,2]
[422068424,1778547041000,-1093.93728263,0.0003699,2]
[422068425,1778547041000,-300.0,0.0003699,2]
[422068426,1778547041000,-300.0,0.0003699,2]
[422068427,1778547041000,-300.0,0.0003699,2]
[422068428,1778547041000,-300.0,0.0003699,2]
[422068429,1778547041000,-300.0,0.0003699,2]
[422068431,1778547041000,-300.0,0.0003699,2]
[422068406,1778547041000,-576.75052358,0.0003699,2]
[422068418,1778547041000,-300.0,0.0003699,2]
[422068405,1778547041000,-300.0,0.0003699,2]
[422068392,1778547041000,-1146.33732402,0.0003699,2]
[422068402,1778547041000,-300.0,0.0003699,2]
[422068430,1778547041000,-300.0,0.0003699,2]
[422068378,1778547041000,-300.34921583,0.0003699,2]
[422068381,1778547041000,-300.0,0.0003699,2]
[422068379,1778547041000,-300.0,0.0003699,2]
[422068380,1778547041000,-300.0,0.0003699,2]
[422068383,1778547041000,-300.0,0.0003699,2]
[422068384,1778547041000,-853.56388588,0.0003699,2]
[422068386,1778547041000,-1911.04728991,0.0003699,2]
[422068382,1778547041000,-300.0,0.0003699,2]
[422068387,1778547041000,-300.0,0.0003699,2]
[422068385,1778547041000,-300.0,0.0003699,2]
[422068388,1778547041000,-343.72939414,0.0003699,2]
[422068389,1778547041000,-526.51104629,0.0003699,2]
[422068390,1778547041000,-300.0,0.0003699,2]
[422068393,1778547041000,-309.36305204,0.0003699,2]
[422068391,1778547041000,-300.0,0.0003699,2]
[422068394,1778547041000,-300.0,0.0003699,2]
[422068399,1778547041000,-300.0,0.0003699,2]
[422068396,1778547041000,-300.0,0.0003699,2]
[422068398,1778547041000,-300.0,0.0003699,2]
[422068397,1778547041000,-1808.59399067,0.0003699,2]
[422068395,1778547041000,-863.82204897,0.0003699,2]
[422068404,1778547041000,-463.51183089,0.0003699,2]
[422068400,1778547041000,-300.0,0.0003699,2]
[422068403,1778547041000,-300.0,0.0003699,2]
[422068401,1778547041000,-310.66975949,0.0003699,2]
[422068434,1778547041000,-300.0,0.0003699,2]
[422068468,1778547041000,-1911.04728991,0.0003699,2]
[422068435,1778547041000,-300.0,0.0003699,2]
[422068467,1778547041000,-300.0,0.0003699,2]
[422068470,1778547041000,-343.72939414,0.0003699,2]
[422068466,1778547041000,-853.56388588,0.0003699,2]
[422068469,1778547041000,-300.0,0.0003699,2]
[422068471,1778547041000,-526.51104629,0.0003699,2]
[422068473,1778547041000,-300.0,0.0003699,2]
[422068472,1778547041000,-300.0,0.0003699,2]
[422068475,1778547041000,-309.36305204,0.0003699,2]
[422068477,1778547041000,-863.82204897,0.0003699,2]
[422068474,1778547041000,-1146.33732402,0.0003699,2]
[422068476,1778547041000,-300.0,0.0003699,2]
[422068433,1778547041000,-300.0,0.0003699,2]
[422068479,1778547041000,-1808.59399067,0.0003699,2]
[422068480,1778547041000,-300.0,0.0003699,2]
[422068481,1778547041000,-300.0,0.0003699,2]
[422068484,1778547041000,-300.0,0.0003699,2]
[422068482,1778547041000,-300.0,0.0003699,2]
[422068483,1778547041000,-310.66975949,0.0003699,2]
[422068485,1778547041000,-300.0,0.0003699,2]
[422068487,1778547041000,-300.0,0.0003699,2]
[422068489,1778547041000,-300.0,0.0003699,2]
[422068490,1778547041000,-451.58065097,0.0003699,2]
[422068486,1778547041000,-463.51183089,0.0003699,2]
[422068488,1778547041000,-576.75052358,0.0003699,2]
[422068491,1778547041000,-300.0,0.0003699,2]
[422068465,1778547041000,-300.0,0.0003699,2]
[422068464,1778547041000,-369.74861074,0.0003699,2]
[422068478,1778547041000,-300.0,0.0003699,2]
[422068460,1778547041000,-300.0,0.0003699,2]
[422068463,1778547041000,-300.0,0.0003699,2]
[422068436,1778547041000,-300.0,0.0003699,2]
[422068439,1778547041000,-492.3302404,0.0003699,2]
[422068438,1778547041000,-300.0,0.0003699,2]
[422068437,1778547041000,-300.000001,0.0003699,2]
[422068440,1778547041000,-300.0,0.0003699,2]
[422068441,1778547041000,-300.0,0.0003699,2]
[422068444,1778547041000,-604.01726543,0.0003699,2]
[422068445,1778547041000,-300.0,0.0003699,2]
[422068443,1778547041000,-300.0,0.0003699,2]
[422068446,1778547041000,-300.0,0.0003699,2]
[422068447,1778547041000,-300.0,0.0003699,2]
[422068449,1778547041000,-300.0,0.0003699,2]
[422068442,1778547041000,-300.0,0.0003699,2]
[422068450,1778547041000,-1066.14755251,0.0003699,2]
[422068448,1778547041000,-527.3647239,0.0003699,2]
[422068462,1778547041000,-300.0,0.0003699,2]
[422068459,1778547041000,-300.34921583,0.0003699,2]
[422068458,1778547041000,-300.0,0.0003699,2]
[422068456,1778547041000,-301.57273868,0.0003699,2]
[422068453,1778547041000,-312.76873905,0.0003699,2]
[422068461,1778547041000,-300.0,0.0003699,2]
[422068452,1778547041000,-589.94276083,0.0003699,2]
[422068457,1778547041000,-300.0,0.0003699,2]
[422068455,1778547041000,-300.0,0.0003699,2]
[422068451,1778547041000,-892.74772387,0.0003699,2]
[422068454,1778547041000,-725.54702679,0.0003699,2]
[422068504,1778547042000,-501.17869146,0.00037773,5]
[422068526,1778547042000,-174.58,0.00024658,2]
[422068528,1778547042000,-232.76,0.00026111,2]
[422068536,1778547042000,-292.0,0.00036139,30]
[422068538,1778547042000,-208.76,0.0003699,30]
[422068534,1778547042000,-174.58,0.00027397,7]
[422068562,1778547042000,-211.16,0.00026184,2]
[422068530,1778547042000,-211.16,0.00026139,2]
[422068564,1778547042000,-211.16,0.00026207,2]
[422068566,1778547042000,-211.16,0.0002623,7]
[422068568,1778547042000,-691.24,0.0003699,30]
[422068532,1778547042000,-211.16,0.00026161,7]
[422068507,1778547042000,-2833.51030476,0.0003779,2]
[422068494,1778547042000,-300.0,0.0003699,2]
[422068505,1778547042000,-151.0,0.00037779,2]
[422068503,1778547042000,-33147.836,0.0003769,2]
[422068502,1778547042000,-527.65577119,0.0003769,2]
[422068500,1778547042000,-5201.9733812,0.00037,38]
[422068501,1778547042000,-160.0,0.000375,120]
[422068499,1778547042000,-180.689,0.00037,2]
[422068497,1778547042000,-483.72999423,0.0003699,2]
[422068498,1778547042000,-150.0,0.00037,2]
[422068496,1778547042000,-300.0,0.0003699,2]
[422068493,1778547042000,-300.0,0.0003699,2]
[422068495,1778547042000,-300.0,0.0003699,2]
[422068492,1778547042000,-300.0,0.0003699,2]
[422068506,1778547042000,-77716.50404162,0.0003779,2]
[422068572,1778547042000,-300.0,0.0003699,2]
[422068570,1778547042000,-309.60276076,0.0003699,2]
[422068574,1778547042000,-300.0,0.0003699,2]
[422068635,1778547042000,-905.01,0.00038319,2]
[422068633,1778547042000,-200.0,0.00038307,6]
[422068631,1778547042000,-200.0,0.00038304,6]
[422068628,1778547042000,-22204.94963299,0.00038275,30]
[422068625,1778547042000,-4857.49246701,0.00038275,30]
[422068619,1778547042000,-200.0,0.00038267,6]
[422068616,1778547042000,-585.1780575,0.00038237,30]
[422068576,1778547042000,-237635.05435262,0.0003779,2]
[422068621,1778547042000,-200.0,0.00038267,6]
[422068612,1778547042000,-6617.97394306,0.00038237,30]
[422068623,1778547042000,-200.0,0.00038267,6]
[422068610,1778547042000,-150.0,0.00038237,30]
[422068607,1778547042000,-1198.39678061,0.00038237,30]
[422068614,1778547042000,-150.0,0.00038237,30]
[422068601,1778547042000,-151.0,0.00038125,30]
[422068603,1778547042000,-298.383,0.00038126,30]
[422068589,1778547042000,-151.0,0.0003779,7]
[422068580,1778547042000,-8904.5527072,0.0003779,2]
[422068587,1778547042000,-151.0,0.0003779,7]
[422068582,1778547042000,-1068585.5030291,0.0003779,2]
[422068584,1778547042000,-36353.9255249,0.0003779,2]
[422068578,1778547042000,-13337.5101896,0.0003779,2]
[422068591,1778547042000,-151.0,0.0003779,7]
[422068597,1778547042000,-160.0,0.00038,120]
[422068599,1778547042000,-5000.0,0.00038,39]
[422068595,1778547042000,-300.0,0.000379,13]
[422068605,1778547042000,-150.0,0.00038237,30]
[422068593,1778547042000,-292.0,0.0003779,30]
[422068722,1778547043000,-38542.17374256,0.00038735,2]
[422068733,1778547043000,-5800.0,0.00038864,14]
[422068716,1778547043000,-1562.0,0.0003863,30]
[422068714,1778547043000,-2039.1554,0.00038625,2]
[422068718,1778547043000,-2145.2238,0.000387,2]
[422068710,1778547043000,-255.83973053,0.00038546,2]
[422068720,1778547043000,-485.728556,0.00038735,2]
[422068707,1778547043000,-2145.2238,0.00038526,2]
[422068706,1778547043000,-159.0,0.000385,120]
[422068698,1778547043000,-450.0,0.00038364,5]
[422068712,1778547043000,-4665.90823171,0.0003857,2]
[422068724,1778547043000,-1111.61300691,0.00038821,2]
[422068753,1778547043000,-246.68371419,0.000389,30]
[422068729,1778547043000,-194.44979476,0.0003885,30]
[422068731,1778547043000,-5800.0,0.00038856,14]
[422068735,1778547043000,-5800.0,0.00038873,14]
[422068745,1778547043000,-5800.0,0.00038898,14]
[422068737,1778547043000,-2145.2238,0.00038874,2]
[422068747,1778547043000,-2039.1554,0.00038899,2]
[422068738,1778547043000,-5800.0,0.00038881,14]
[422068741,1778547043000,-5800.0,0.0003889,14]
[422068749,1778547043000,-825.79,0.000389,30]
[422068761,1778547043000,-1734.62772924,0.00038903,30]
[422068751,1778547043000,-500.01861265,0.000389,7]
[422068755,1778547043000,-246.68371419,0.000389,30]
[422068703,1778547043000,-700.01539762,0.00038373,5]
[422068726,1778547043000,-5800.0,0.00038847,14]
[422068700,1778547043000,-550.0,0.00038367,5]
[422068665,1778547043000,-25000.0,0.00038356,10]
[422068696,1778547043000,-350.0,0.00038362,5]
[422068758,1778547043000,-246.68371419,0.000389,30]
[422068637,1778547043000,-905.01,0.00038319,2]
[422068646,1778547043000,-904.99,0.00038323,2]
[422068640,1778547043000,-905.01,0.00038321,2]
[422068642,1778547043000,-905.01,0.00038321,2]
[422068644,1778547043000,-905.01,0.00038321,2]
[422068648,1778547043000,-905.01,0.00038323,2]
[422068650,1778547043000,-905.01,0.00038323,2]
[422068653,1778547043000,-2120.0,0.00038329,120]
[422068658,1778547043000,-2425.0,0.00038329,120]
[422068655,1778547043000,-2120.0,0.00038329,120]
[422068660,1778547043000,-25000.0,0.00038347,10]
[422068667,1778547043000,-18742.73606384,0.00038356,10]
[422068670,1778547043000,-150.0,0.00038356,2]
[422068662,1778547043000,-2145.2238,0.00038351,2]
[422068672,1778547043000,-222.50259884,0.00038356,2]
[422068682,1778547043000,-308.31903524,0.00038356,2]
[422068674,1778547043000,-500.0,0.00038356,2]
[422068678,1778547043000,-1000.0,0.00038356,7]
[422068680,1778547043000,-930.57432645,0.00038356,7]
[422068676,1778547043000,-1000.0,0.00038356,7]
[422068686,1778547043000,-151.0,0.00038356,30]
[422068694,1778547043000,-250.0,0.00038359,5]
[422068684,1778547043000,-151.0,0.00038356,30]
[422068687,1778547043000,-151.0,0.00038356,30]
[422068690,1778547043000,-1562.0,0.00038356,30]
[422068692,1778547043000,-150.0,0.00038356,5]
[422068701,1778547043000,-650.0,0.0003837,5]
[422068764,1778547043000,-1562.0,0.00038904,30]
[422068663,1778547043000,-2039.1554,0.00038351,2]
[422068776,1778547043000,-500.0,0.00038953,14]
[422068836,1778547043000,-500.0,0.00038953,14]
[422068838,1778547043000,-152.0,0.00038953,14]
[422068840,1778547043000,-151.0,0.00038953,14]
[422068842,1778547043000,-200.0,0.00038953,14]
[422068846,1778547043000,-151.0,0.00038953,14]
[422068844,1778547043000,-152.0,0.00038953,14]
[422068854,1778547043000,-500.0,0.00038953,14]
[422068848,1778547043000,-500.0,0.00038953,14]
[422068852,1778547043000,-152.0,0.00038953,14]
[422068850,1778547043000,-200.0,0.00038953,14]
[422068866,1778547043000,-500.0,0.00038953,14]
[422068858,1778547043000,-151.0,0.00038953,14]
[422068856,1778547043000,-500.0,0.00038953,14]
[422068860,1778547043000,-200.0,0.00038953,14]
[422068888,1778547043000,-200.0,0.00038953,14]
[422068864,1778547043000,-500.0,0.00038953,14]
[422068862,1778547043000,-152.0,0.00038953,14]
[422068871,1778547043000,-151.0,0.00038953,14]
[422068869,1778547043000,-200.0,0.00038953,14]
[422068877,1778547043000,-500.0,0.00038953,14]
[422068873,1778547043000,-152.0,0.00038953,14]
[422068879,1778547043000,-200.0,0.00038953,14]
[422068875,1778547043000,-500.0,0.00038953,14]
[422068881,1778547043000,-151.0,0.00038953,14]
[422068883,1778547043000,-152.0,0.00038953,14]
[422068885,1778547043000,-500.0,0.00038953,14]
[422068890,1778547043000,-151.0,0.00038953,14]
[422068834,1778547043000,-200.0,0.00038953,14]
[422068833,1778547043000,-151.0,0.00038953,14]
[422068774,1778547043000,-200.0,0.00038953,14]
[422068825,1778547043000,-500.0,0.00038953,14]
[422068831,1778547043000,-500.0,0.00038953,14]
[422068768,1778547043000,-5800.0,0.00038907,14]
[422068770,1778547043000,-504.33965857,0.00038953,14]
[422068772,1778547043000,-200.0,0.00038953,14]
[422068779,1778547043000,-200.0,0.00038953,14]
[422068777,1778547043000,-151.0,0.00038953,14]
[422068788,1778547043000,-151.0,0.00038953,14]
[422068783,1778547043000,-1280.88388878,0.00038953,14]
[422068781,1778547043000,-500.0,0.00038953,14]
[422068790,1778547043000,-200.0,0.00038953,14]
[422068792,1778547043000,-1328.27659266,0.00038953,14]
[422068794,1778547043000,-500.0,0.00038953,14]
[422068797,1778547043000,-500.0,0.00038953,14]
[422068801,1778547043000,-200.0,0.00038953,14]
[422068785,1778547043000,-500.0,0.00038953,14]
[422068803,1778547043000,-500.0,0.00038953,14]
[422068799,1778547043000,-151.0,0.00038953,14]
[422068827,1778547043000,-151.0,0.00038953,14]
[422068818,1778547043000,-151.0,0.00038953,14]
[422068823,1778547043000,-969.72580748,0.00038953,14]
[422068816,1778547043000,-500.0,0.00038953,14]
[422068814,1778547043000,-1428.38747117,0.00038953,14]
[422068829,1778547043000,-200.0,0.00038953,14]
[422068821,1778547043000,-200.0,0.00038953,14]
[422068810,1778547043000,-200.0,0.00038953,14]
[422068809,1778547043000,-151.0,0.00038953,14]
[422068807,1778547043000,-500.0,0.00038953,14]
[422068804,1778547043000,-1377.42282659,0.00038953,14]
[422068812,1778547043000,-284.32233892,0.00038953,14]
[422068967,1778547044000,-151.0,0.00038953,14]
[422068988,1778547044000,-151.0,0.00038953,14]
[422068974,1778547044000,-211.40802048,0.00038953,14]
[422068985,1778547044000,-151.0,0.00038953,14]
[422068962,1778547044000,-151.0,0.00038953,14]
[422068959,1778547044000,-151.0,0.00038953,14]
[422068969,1778547044000,-151.0,0.00038953,14]
[422068965,1778547044000,-151.0,0.00038953,14]
[422068964,1778547044000,-151.0,0.00038953,14]
[422068952,1778547044000,-500.0,0.00038953,14]
[422068977,1778547044000,-219.23011724,0.00038953,14]
[422068972,1778547044000,-151.0,0.00038953,14]
[422068975,1778547044000,-151.0,0.00038953,14]
[422068999,1778547044000,-3109.81440979,0.00039,14]
[422068983,1778547044000,-151.0,0.00038953,14]
[422068981,1778547044000,-228.02704618,0.00038953,14]
[422068990,1778547044000,-150.0,0.00038953,120]
[422068991,1778547044000,-152.41233372,0.00038953,120]
[422068989,1778547044000,-150.0,0.00038953,120]
[422068992,1778547044000,-4648.27395074,0.00038954,14]
[422068993,1778547044000,-5800.0,0.00038962,14]
[422068994,1778547044000,-5800.0,0.00038971,14]
[422068996,1778547044000,-245.92823839,0.00039,5]
[422068995,1778547044000,-5800.0,0.00038979,14]
[422068998,1778547044000,-1006.8767744,0.00039,2]
[422068997,1778547044000,-336.82,0.00039,120]
[422068957,1778547044000,-151.0,0.00038953,14]
[422068979,1778547044000,-151.0,0.00038953,14]
[422068954,1778547044000,-225.18697531,0.00038953,14]
[422068931,1778547044000,-500.0,0.00038953,14]
[422068950,1778547044000,-217.15233878,0.00038953,14]
[422069000,1778547044000,-1999.999999,0.00039,120]
[422068892,1778547044000,-152.0,0.00038953,14]
[422068894,1778547044000,-500.0,0.00038953,14]
[422068907,1778547044000,-500.0,0.00038953,14]
[422068903,1778547044000,-152.0,0.00038953,14]
[422068905,1778547044000,-500.0,0.00038953,14]
[422068899,1778547044000,-206.96783375,0.00038953,14]
[422068896,1778547044000,-500.0,0.00038953,14]
[422068901,1778547044000,-151.0,0.00038953,14]
[422068909,1778547044000,-152.0,0.00038953,14]
[422068911,1778547044000,-500.0,0.00038953,14]
[422068919,1778547044000,-500.0,0.00038953,14]
[422068915,1778547044000,-500.0,0.00038953,14]
[422068955,1778547044000,-151.0,0.00038953,14]
[422068913,1778547044000,-152.0,0.00038953,14]
[422068921,1778547044000,-174.61919141,0.00038953,14]
[422068933,1778547044000,-187.78006525,0.00038953,14]
[422068923,1778547044000,-152.0,0.00038953,14]
[422068927,1778547044000,-181.08010149,0.00038953,14]
[422068925,1778547044000,-500.0,0.00038953,14]
[422068929,1778547044000,-152.0,0.00038953,14]
[422068937,1778547044000,-500.0,0.00038953,14]
[422068939,1778547044000,-194.72792766,0.00038953,14]
[422068941,1778547044000,-500.0,0.00038953,14]
[422068945,1778547044000,-209.40437684,0.00038953,14]
[422068935,1778547044000,-152.0,0.00038953,14]
[422068943,1778547044000,-201.93286099,0.00038953,14]
[422068948,1778547044000,-500.0,0.00038953,14]
[422068917,1778547044000,-152.0,0.00038953,14]
[422069001,1778547044000,-11063.61,0.00039,30]
[422069011,1778547044000,-500.0,0.0003913,60]
[422069005,1778547044000,-3989.2,0.00039047,120]
[422069043,1778547044000,-2145.2238,0.00039746,2]
[422069044,1778547044000,-500.0,0.0003977,30]
[422069045,1778547044000,-2000.0,0.000398,120]
[422069042,1778547044000,-30000.0,0.00039726,60]
[422069046,1778547044000,-2000.0,0.000398,120]
[422069047,1778547044000,-2000.0,0.000398,120]
[422069049,1778547044000,-825.79,0.000399,30]
[422069048,1778547044000,-431.3573,0.000399,120]
[422069051,1778547044000,-400.0,0.0003997,2]
[422069050,1778547044000,-2145.2238,0.0003992,2]
[422069053,1778547044000,-900.0,0.00039973,30]
[422069052,1778547044000,-400.0,0.0003997,2]
[422069054,1778547044000,-900.0,0.00039973,30]
[422069040,1778547044000,-1562.0,0.00039726,30]
[422069055,1778547044000,-900.0,0.00039973,30]
[422069002,1778547044000,-208.15897961,0.00039,120]
[422069057,1778547044000,-900.0,0.00039973,30]
[422069058,1778547044000,-900.0,0.00039973,30]
[422069061,1778547044000,-900.0,0.00039973,30]
[422069060,1778547044000,-900.0,0.00039973,30]
[422069064,1778547044000,-900.0,0.00039973,30]
[422069062,1778547044000,-900.0,0.00039973,30]
[422069063,1778547044000,-900.0,0.00039973,30]
[422069066,1778547044000,-900.0,0.00039973,30]
[422069065,1778547044000,-900.0,0.00039973,30]
[422069068,1778547044000,-900.0,0.00039973,30]
[422069067,1778547044000,-900.0,0.00039973,30]
[422069069,1778547044000,-900.0,0.00039973,30]
[422069056,1778547044000,-900.0,0.00039973,30]
[422069041,1778547044000,-50000.0,0.00039726,60]
[422069059,1778547044000,-900.0,0.00039973,30]
[422069035,1778547044000,-192.059999,0.000397,16]
[422069039,1778547044000,-2039.1554,0.00039721,2]
[422069004,1778547044000,-100132.58067314,0.00039,30]
[422069003,1778547044000,-5000.0,0.00039,40]
[422069006,1778547044000,-2145.2238,0.00039049,2]
[422069008,1778547044000,-170.07819498,0.00039105,120]
[422069010,1778547044000,-1000.0,0.00039118,120]
[422069007,1778547044000,-203.50988291,0.000391,30]
[422069013,1778547044000,-1562.0,0.00039178,30]
[422069012,1778547044000,-2039.1554,0.00039173,2]
[422069014,1778547044000,-2145.2238,0.00039223,2]
[422069017,1778547044000,-3989.14,0.00039371,120]
[422069020,1778547044000,-2039.1554,0.00039447,2]
[422069019,1778547044000,-5006.6,0.000394,14]
[422069015,1778547044000,-217.32165703,0.00039283,102]
[422069016,1778547044000,-531.33,0.000393,90]
[422069037,1778547044000,-1244.9685,0.00039716,120]
[422069018,1778547044000,-2145.2238,0.00039397,2]
[422069033,1778547044000,-3989.14,0.00039696,120]
[422069030,1778547044000,-639.42,0.00039547,2]
[422069032,1778547044000,-2145.2238,0.00039572,2]
[422069028,1778547044000,-5000.0,0.00039472,2]
[422069029,1778547044000,-5000.0,0.00039472,2]
[422069031,1778547044000,-712.27328016,0.00039551,2]
[422069026,1778547044000,-5000.0,0.00039472,2]
[422069022,1778547044000,-500.0,0.00039452,5]
[422069023,1778547044000,-5000.0,0.00039472,2]
[422069024,1778547044000,-5000.0,0.00039472,2]
[422069021,1778547044000,-1562.0,0.00039452,30]
[422069092,1778547045000,-900.0,0.00039973,30]
[422069088,1778547045000,-900.0,0.00039973,30]
[422069093,1778547045000,-900.0,0.00039973,30]
[422069094,1778547045000,-900.0,0.00039973,30]
[422069095,1778547045000,-900.0,0.00039973,30]
[422069091,1778547045000,-900.0,0.00039973,30]
[422069104,1778547045000,-500.0,0.00039999,30]
[422069102,1778547045000,-557.5788265,0.00039999,30]
[422069105,1778547045000,-1148.61238259,0.00039999,30]
[422069097,1778547045000,-900.0,0.00039973,30]
[422069103,1778547045000,-151.0,0.00039999,30]
[422069107,1778547045000,-1191.11104075,0.00039999,41]
[422069101,1778547045000,-3023.08268076,0.00039999,2]
[422069089,1778547045000,-900.0,0.00039973,30]
[422069106,1778547045000,-151.0,0.00039999,41]
[422069100,1778547045000,-151.0,0.00039997,14]
[422069087,1778547045000,-900.0,0.00039973,30]
[422069074,1778547045000,-900.0,0.00039973,30]
[422069086,1778547045000,-900.0,0.00039973,30]
[422069108,1778547045000,-500.0,0.00039999,41]
[422069071,1778547045000,-900.0,0.00039973,30]
[422069070,1778547045000,-900.0,0.00039973,30]
[422069073,1778547045000,-900.0,0.00039973,30]
[422069072,1778547045000,-900.0,0.00039973,30]
[422069075,1778547045000,-900.0,0.00039973,30]
[422069078,1778547045000,-900.0,0.00039973,30]
[422069077,1778547045000,-900.0,0.00039973,30]
[422069079,1778547045000,-900.0,0.00039973,30]
[422069081,1778547045000,-900.0,0.00039973,30]
[422069080,1778547045000,-900.0,0.00039973,30]
[422069082,1778547045000,-900.0,0.00039973,30]
[422069083,1778547045000,-900.0,0.00039973,30]
[422069084,1778547045000,-900.0,0.00039973,30]
[422069085,1778547045000,-900.0,0.00039973,30]
[422069090,1778547045000,-900.0,0.00039973,30]
[422069096,1778547045000,-900.0,0.00039973,30]
[422069076,1778547045000,-900.0,0.00039973,30]
[422069098,1778547045000,-1036.0,0.00039973,30]
[422069130,1778547045000,-171.29688013,0.00039999,41]
[422069129,1778547045000,-168.3888056,0.00039999,30]
[422069131,1778547045000,-1562.0,0.0004,30]
[422069133,1778547045000,-435.74100092,0.0004,7]
[422069132,1778547045000,-553.94458486,0.0004,120]
[422069135,1778547045000,-161.0,0.0004,120]
[422069138,1778547045000,-1011.60003444,0.0004,7]
[422069128,1778547045000,-203.86501493,0.00039999,43]
[422069134,1778547045000,-2438.79,0.0004,120]
[422069137,1778547045000,-241.36821009,0.0004,120]
[422069139,1778547045000,-668.31,0.0004,120]
[422069143,1778547045000,-194.77197129,0.0004,120]
[422069140,1778547045000,-322204.34613043,0.0004,30]
[422069141,1778547045000,-731.52074262,0.0004,120]
[422069144,1778547045000,-14950.48866977,0.0004,120]
[422069099,1778547045000,-2039.1554,0.00039995,2]
[422069136,1778547045000,-5081.549999,0.0004,120]
[422069127,1778547045000,-196.59114265,0.00039999,41]
[422069142,1778547045000,-398.61251282,0.0004,120]
[422069125,1778547045000,-189.57680101,0.00039999,30]
[422069110,1778547045000,-1235.18214925,0.00039999,43]
[422069111,1778547045000,-500.0,0.00039999,43]
[422069109,1778547045000,-151.0,0.00039999,43]
[422069115,1778547045000,-152.0,0.00039999,43]
[422069113,1778547045000,-152.0,0.00039999,30]
[422069114,1778547045000,-152.0,0.00039999,41]